fUSD/lending_fUSD_20240430
["ID","MTS","AMOUNT","RATE_DAILY","PERIOD"]
[324933085,1714435666690,1001.4,9.815e-05,2]
[324933099,1714435832016,-485.88175586,0.00011687,2]
[324933100,1714435832073,-38.41526468,0.00011687,2]
[324933101,1714435832083,-367.05903859,0.00011688,2]
[324933274,1714435838297,-8544.62226681,0.00011688,2]
[324933275,1714435838311,-2085.02544602,0.00011688,2]
[324933278,1714435840048,-5213.16040734,0.00011688,2]
[324933279,1714435840057,-1522.32,0.0001169,2]
[324933280,1714435840067,-250.0,0.00011694,2]
[324933281,1714435840076,-150.0,0.00011701,2]
[324933282,1714435840085,-432.57,0.00011722,2]
[324933283,1714435840094,-373.35,0.00011825,2]
[324933284,1714435840103,-167.44,0.00011886,2]
[324933285,1714435840113,-154.93126115,0.00012,2]
[324933286,1714435840122,-3404.20688453,0.00012,2]
[324933287,1714435840131,-1001.4,0.00012079,2]
[324933288,1714435840141,-846.0,0.00012329,2]
[324933289,1714435840150,-1000.0,0.00012346,2]
[324933290,1714435840159,-3285.63173121,0.00012347,2]
[324933291,1714435840427,-628.79682713,0.00012347,2]
[324933292,1714435840438,-272.89304705,0.00012347,2]
[324933293,1714435840450,-1127.885,0.00012347,2]
[324933336,1714435843100,-623.25,0.00012347,2]
[324933338,1714435843112,-736.62861933,0.00012347,2]
[324933340,1714435843124,-826.25901472,0.00012347,2]
[324933345,1714435843156,-37577.11725357,0.00012347,2]
[324933346,1714435843213,-2267.5,0.00012347,2]
[324933347,1714435843270,-623.41274859,0.00012347,2]
[324933351,1714435846013,-514.02,0.00011722,2]
[324933352,1714435846022,-16.58,0.00012347,2]
[324933353,1714435846070,-3562.95,0.00012347,2]
[324933354,1714435846130,-382.28943785,0.00012347,2]
[324933355,1714435846190,-322.9200001,0.00012347,2]
[324933356,1714435846202,-272.69910537,0.00012347,2]
[324933357,1714435846251,-497.75,0.00012347,2]
[324933358,1714435846263,-627.36546595,0.00012347,2]
[324933359,1714435846280,-1303.58494265,0.00012347,2]
[324933361,1714436142783,972.01,9.799e-05,2]
[324933363,1714436547782,782.93134989,0.0001,2]
[324933364,1714436693986,923.4,9.543e-05,2]
[324933374,1714437032248,-508.0,0.00011255,2]
[324933375,1714437032258,-1242.67581309,0.00011256,2]
[324933376,1714437032267,-5365.4942,0.00011257,2]
[324933377,1714437032277,-3500.0,0.0001131,2]
[324933378,1714437032287,-250.0,0.00011312,2]
[324933379,1714437032296,-1255.5,0.00011357,2]
[324933380,1714437032306,-3899.85,0.00011357,2]
[324933381,1714437032315,-346.05,0.00011365,2]
[324933382,1714437032325,-250.0,0.00011399,2]
[324933383,1714437032334,-150.0,0.00011416,2]
[324933384,1714437032344,-298.68,0.0001144,2]
[324933385,1714437032353,-167.36,0.00011471,2]
[324933386,1714437032363,-164.24,0.00011612,2]
[324933387,1714437032372,-923.4,0.00011807,2]
[324933388,1714437032382,-172.46,0.00011895,2]
[324933389,1714437032391,-499.99,0.00011895,2]
[324933390,1714437032413,-500.0,0.00012,2]
[324933391,1714437032423,-167.36,0.00012068,2]
[324933392,1714437032432,-8758.36429654,0.0001229,2]
[324933393,1714437032442,-1000.0,0.00012299,2]
[324933394,1714437032451,-15373.213209,0.000123,5]
[324933395,1714437032472,-2353.82052419,0.000123,5]
[324933396,1714437032497,-508.47198714,0.000123,5]
[324933397,1714437032517,-625.3983,0.000123,5]
[324933401,1714437038302,-450.89332225,0.000123,5]
[324933402,1714437038369,-12809.9,0.000123,5]
[324933403,1714437038556,-8879.42650604,0.000123,5]
[324933404,1714437038569,-2068.59902885,0.000123,5]
[324933405,1714437038581,-2084.0327375,0.000123,5]
[324933406,1714437038593,-2007.98320904,0.000123,5]
[324933413,1714437040533,-338.76887666,0.000123,5]
[324933414,1714437040542,-1000.0,0.000123,2]
[324933415,1714437040552,-829.64,0.00012343,2]
[324933416,1714437040562,-1820.91,0.00012343,2]
[324933417,1714437040572,-640.5697165,0.00012343,2]
[324933418,1714437040584,-185.1502835,0.00012343,2]
[324933419,1714437040593,-3000.0,0.00012347,2]
[324933420,1714437040603,-3156.02038931,0.00012348,2]
[324933421,1714437040612,-463.76718743,0.00012364,2]
[324933422,1714437040621,-15259.097,0.0001239,2]
[324933423,1714437040631,-1000.0,0.0001239,2]
[324933424,1714437040640,-564.1381,0.0001239,2]
[324933425,1714437040653,-305.45205436,0.00012489,2]
[324933426,1714437040662,-3414.70545517,0.00012489,2]
[324933427,1714437040671,-2878.12,0.00012489,2]
[324933428,1714437040680,-500.0,0.00012489,2]
[324933429,1714437040688,-500.0,0.00012489,2]
[324933430,1714437040698,-363.53802358,0.00012489,2]
[324933431,1714437040707,-469.23550664,0.00012489,2]
[324933432,1714437040739,-94.95449336,0.00012489,2]
[324933433,1714437040748,-263.16093352,0.00012489,2]
[324933464,1714437043273,-236.83906648,0.00012489,2]
[324933466,1714437043283,-500.0,0.00012489,2]
[324933468,1714437043293,-500.0,0.00012489,2]
[324933470,1714437043303,-500.0,0.00012489,2]
[324933471,1714437043311,-500.0,0.00012489,2]
[324933472,1714437043332,-500.0,0.00012489,2]
[324933473,1714437043342,-500.0,0.00012489,2]
[324933474,1714437043352,-213.49512968,0.00012489,2]
[324933475,1714437043362,-121.74732682,0.00012489,2]
[324933476,1714437043375,-332.37267318,0.00012489,2]
[324933477,1714437043384,-500.0,0.00012489,2]
[324933478,1714437043394,-500.0,0.00012489,2]
[324933479,1714437043407,-500.0,0.00012489,2]
[324933480,1714437043416,-500.0,0.00012489,2]
[324933481,1714437043426,-998.15,0.00012489,2]
[324933482,1714437043436,-500.0,0.00012489,2]
[324933483,1714437043446,-500.0,0.00012489,2]
[324933484,1714437043455,-500.0,0.00012489,2]
[324933485,1714437043465,-500.0,0.00012489,2]
[324933486,1714437043475,-500.0,0.00012489,2]
[324933487,1714437043484,-500.0,0.00012489,2]
[324933488,1714437043494,-837.76,0.00012489,2]
[324933489,1714437043503,-500.0,0.00012489,2]
[324933490,1714437043513,-500.0,0.00012489,2]
[324933491,1714437043522,-500.0,0.00012489,2]
[324933492,1714437043532,-500.0,0.00012489,2]
[324933493,1714437043541,-500.0,0.00012489,2]
[324933494,1714437043551,-912.49,0.00012489,2]
[324933495,1714437043560,-500.0,0.00012489,2]
[324933496,1714437043570,-500.0,0.00012489,2]
[324933497,1714437043579,-501.453095,0.00012489,2]
[324933498,1714437043589,-500.0,0.00012489,2]
[324933499,1714437043599,-500.0,0.00012489,2]
[324933500,1714437043608,-500.0,0.00012489,2]
[324933501,1714437043617,-500.0,0.00012489,2]
[324933502,1714437043627,-709.02,0.00012489,2]
[324933503,1714437043636,-500.0,0.00012489,2]
[324933504,1714437043646,-500.0,0.00012489,2]
[324933505,1714437043658,-500.0,0.00012489,2]
[324933506,1714437043668,-500.0,0.00012489,2]
[324933507,1714437043678,-500.0,0.00012489,2]
[324933508,1714437043688,-500.0,0.00012489,2]
[324933509,1714437043697,-500.0,0.00012489,2]
[324933510,1714437043707,-545.82980616,0.00012489,2]
[324933511,1714437043716,-500.0,0.00012489,2]
[324933512,1714437043726,-570.61,0.00012489,2]
[324933513,1714437043735,-500.0,0.00012489,2]
[324933514,1714437043745,-852.95,0.00012489,2]
[324933515,1714437043754,-500.0,0.00012489,2]
[324933516,1714437043763,-500.0,0.00012489,2]
[324933517,1714437043774,-500.0,0.00012489,2]
[324933518,1714437043784,-1108.52,0.00012489,2]
[324933519,1714437043794,-366.95226114,0.00012489,2]
[324933520,1714437043804,-589.07,0.00012489,2]
[324933521,1714437043813,-500.0,0.00012489,2]
[324933522,1714437043823,-500.0,0.00012489,2]
[324933523,1714437043832,-652.07,0.00012489,2]
[324933524,1714437043841,-367.57396564,0.00012489,2]
[324933525,1714437043851,-500.0,0.00012489,2]
[324933526,1714437043860,-500.0,0.00012489,2]
[324933527,1714437043870,-500.0,0.00012489,2]
[324933528,1714437043879,-500.0,0.00012489,2]
[324933529,1714437043889,-500.0,0.00012489,2]
[324933530,1714437043898,-500.0,0.00012489,2]
[324933531,1714437043910,-681.52,0.00012489,2]
[324933532,1714437043920,-1830.78,0.00012489,2]
[324933533,1714437043929,-500.0,0.00012489,2]
[324933534,1714437043938,-500.0,0.00012489,2]
[324933535,1714437043947,-500.0,0.00012489,2]
[324933536,1714437043956,-500.0,0.00012489,2]
[324933537,1714437043965,-942.72,0.00012489,2]
[324933538,1714437043975,-500.0,0.00012489,2]
[324933539,1714437043984,-500.0,0.00012489,2]
[324933540,1714437043993,-500.0,0.00012489,2]
[324933541,1714437044002,-500.0,0.00012489,2]
[324933542,1714437044011,-500.0,0.00012489,2]
[324933543,1714437044021,-500.0,0.00012489,2]
[324933544,1714437044030,-500.0,0.00012489,2]
[324933545,1714437044039,-500.0,0.00012489,2]
[324933546,1714437044049,-500.0,0.00012489,2]
[324933547,1714437044058,-500.0,0.00012489,2]
[324933548,1714437044073,-500.0,0.00012489,2]
[324933549,1714437044082,-500.0,0.00012489,2]
[324933550,1714437044091,-500.0,0.00012489,2]
[324933551,1714437044101,-185.41271365,0.00012489,2]
[324933552,1714437044111,-500.0,0.00012489,2]
[324933553,1714437044120,-500.0,0.00012489,2]
[324933554,1714437044129,-500.0,0.00012489,2]
[324933555,1714437044138,-1050.32,0.00012489,2]
[324933556,1714437044149,-279.61759955,0.00012489,2]
[324933557,1714437044162,-500.0,0.00012489,2]
[324933558,1714437044171,-160.67727822,0.00012489,2]
[324933559,1714437044180,-612.92,0.00012489,2]
[324933560,1714437044189,-1966.69,0.00012489,2]
[324933561,1714437044199,-926.53,0.00012489,2]
[324933562,1714437044208,-271594.37654262,0.0001249,2]
[324933563,1714437044217,-166.53906761,0.0001249,2]
[324933564,1714437044227,-187.0,0.0001259,2]
[324933565,1714437044236,-1000.0,0.0001275,2]
[324933566,1714437044245,-500.0,0.00012763,2]
[324933567,1714437044255,-500.0,0.00012763,2]
[324933568,1714437044264,-500.0,0.00012763,2]
[324933569,1714437044273,-500.0,0.00012763,2]
[324933570,1714437044282,-998.15,0.00012763,2]
[324933571,1714437044291,-500.0,0.00012763,2]
[324933572,1714437044300,-500.0,0.00012763,2]
[324933573,1714437044310,-510.17,0.00012763,2]
[324933574,1714437044320,-837.76,0.00012763,2]
[324933575,1714437044329,-500.0,0.00012763,2]
[324933576,1714437044338,-479.49572219,0.00012763,2]
[324933577,1714437044348,-500.0,0.00012763,2]
[324933578,1714437044358,-500.0,0.00012763,2]
[324933579,1714437044367,-500.0,0.00012763,2]
[324933580,1714437044376,-912.49,0.00012763,2]
[324933581,1714437044386,-500.0,0.00012763,2]
[324933582,1714437044395,-500.0,0.00012763,2]
[324933583,1714437044407,-500.0,0.00012763,2]
[324933584,1714437044417,-500.0,0.00012763,2]
[324933585,1714437044426,-500.0,0.00012763,2]
[324933586,1714437044435,-709.02,0.00012763,2]
[324933587,1714437044446,-500.0,0.00012763,2]
[324933588,1714437044455,-500.0,0.00012763,2]
[324933589,1714437044464,-500.0,0.00012763,2]
[324933590,1714437044474,-500.0,0.00012763,2]
[324933591,1714437044483,-500.0,0.00012763,2]
[324933592,1714437044492,-500.0,0.00012763,2]
[324933593,1714437044501,-570.61,0.00012763,2]
[324933594,1714437044511,-500.0,0.00012763,2]
[324933595,1714437044520,-852.95,0.00012763,2]
[324933596,1714437044530,-500.0,0.00012763,2]
[324933597,1714437044539,-500.0,0.00012763,2]
[324933598,1714437044548,-500.0,0.00012763,2]
[324933599,1714437044558,-1108.52,0.00012763,2]
[324933600,1714437044568,-500.0,0.00012763,2]
[324933601,1714437044577,-652.07,0.00012763,2]
[324933602,1714437044587,-191.16,0.00012763,2]
[324933603,1714437044596,-500.0,0.00012763,2]
[324933604,1714437044605,-500.0,0.00012763,2]
[324933605,1714437044615,-500.0,0.00012763,2]
[324933606,1714437044626,-500.0,0.00012763,2]
[324933607,1714437044635,-681.52,0.00012763,2]
[324933608,1714437044644,-1830.78,0.00012763,2]
[324933609,1714437044655,-500.0,0.00012763,2]
[324933610,1714437044664,-500.0,0.00012763,2]
[324933611,1714437044674,-942.72,0.00012763,2]
[324933612,1714437044683,-500.0,0.00012763,2]
[324933613,1714437044693,-500.0,0.00012763,2]
[324933614,1714437044702,-500.0,0.00012763,2]
[324933615,1714437044711,-500.0,0.00012763,2]
[324933616,1714437044720,-500.0,0.00012763,2]
[324933617,1714437044729,-500.0,0.00012763,2]
[324933618,1714437044738,-1050.32,0.00012763,2]
[324933619,1714437044747,-500.0,0.00012763,2]
[324933620,1714437044756,-612.92,0.00012763,2]
[324933621,1714437044767,-1966.69,0.00012763,2]
[324933622,1714437044777,-926.53,0.00012763,2]
[324933623,1714437044788,-346.05,0.00012786,2]
[324933624,1714437044798,-3149.48513416,0.00012796,2]
[324933625,1714437044853,-11983.56209777,0.00012796,2]
[324933626,1714437044865,-805.43476892,0.00012796,2]
[324933627,1714437044890,-661.66608519,0.00012796,2]
[324933628,1714437044911,-2306.6388282,0.00012796,2]
[324933642,1714437046374,-13351.83788171,0.00012796,2]
[324933643,1714437046387,-3205.7025,0.00012796,2]
[324933647,1714437170751,906.23,9.77e-05,2]
[324933648,1714437688860,860.91,9.457e-05,2]
[324933650,1714438153332,817.86,9.392e-05,2]
[324933657,1714438231378,-781.95019923,0.00011325,2]
[324933658,1714438231389,-460.72561386,0.00011325,2]
[324933659,1714438231398,-284.79762757,0.00011326,2]
[324933660,1714438231408,-150.0,0.00011335,2]
[324933661,1714438231416,-250.0,0.00011335,2]
[324933662,1714438231426,-150.0,0.00011342,2]
[324933663,1714438231435,-207.63,0.00011386,2]
[324933664,1714438231448,-150.0,0.00011397,2]
[324933665,1714438231457,-152.84868604,0.00011406,2]
[324933666,1714438231469,-827.13712285,0.00011406,2]
[324933667,1714438231493,-144.24419111,0.00011406,2]
[324933668,1714438231502,-115.6178089,0.00011411,2]
[324933669,1714438231514,-134.3821911,0.00011411,2]
[324933670,1714438231527,-172.46,0.00011458,2]
[324933671,1714438231537,-50.637806,0.00011515,2]
[324933672,1714438231549,-401.82437314,0.00011515,2]
[324933673,1714438231576,-297.17372381,0.00011515,2]
[324933674,1714438231585,-999.99,0.00011515,2]
[324933675,1714438231597,-150.99,0.00011515,2]
[324933676,1714438231607,-663.68,0.00011544,2]
[324933677,1714438231616,-167.36,0.00011608,2]
[324933678,1714438231625,-558.0,0.0001162,2]
[324933679,1714438231635,-817.86,0.00011656,2]
[324933680,1714438231644,-167.36,0.00011759,2]
[324933681,1714438231653,-167.36,0.0001191,2]
[324933682,1714438231667,-178.37,0.00011918,2]
[324933683,1714438231676,-167.36,0.00012062,2]
[324933684,1714438231686,-167.36,0.00012213,2]
[324933685,1714438231695,-161.590448,0.000123,2]
[324933686,1714438231705,-3272.737818,0.000123,2]
[324933687,1714438231714,-167.049217,0.000123,2]
[324933688,1714438231723,-385.301075,0.000123,2]
[324933689,1714438231732,-815.0,0.00012301,2]
[324933690,1714438231741,-11473.4247,0.00012389,2]
[324933691,1714438231750,-4953.5002,0.00012389,2]
[324933692,1714438231759,-2010.0711,0.00012389,2]
[324933693,1714438231768,-1000.0,0.0001239,2]
[324933694,1714438231777,-150.0,0.0001242,2]
[324933695,1714438231787,-3272.737818,0.00012453,2]
[324933697,1714438231796,-385.301075,0.00012453,2]
[324933699,1714438231805,-814.13331328,0.00012488,2]
[324933701,1714438231815,-1000.0,0.00012488,2]
[324933704,1714438231824,-155.50197705,0.00012489,2]
[324933706,1714438231833,-500.0,0.00012489,2]
[324933708,1714438231844,-251.77531478,0.00012489,2]
[324933710,1714438231854,-500.0,0.00012489,2]
[324933711,1714438231863,-500.0,0.00012489,2]
[324933712,1714438231872,-500.0,0.00012489,2]
[324933713,1714438231882,-500.0,0.00012489,2]
[324933714,1714438231891,-150.0,0.00012495,2]
[324933715,1714438231900,-307.5999,0.00012595,2]
[324933716,1714438231909,-1000.0,0.00012595,2]
[324933717,1714438231918,-2500.0,0.00012595,2]
[324933718,1714438231927,-161.590448,0.00012607,2]
[324933719,1714438231936,-3272.737818,0.00012607,2]
[324933720,1714438231945,-385.301075,0.00012607,2]
[324933721,1714438231954,-16304.45692689,0.0001267,2]
[324933722,1714438231963,-358.60933566,0.00012693,2]
[324933723,1714438231972,-155.0,0.00012694,2]
[324933724,1714438231982,-500.0,0.00012694,2]
[324933725,1714438231991,-500.0,0.00012694,2]
[324933726,1714438232000,-500.0,0.00012694,2]
[324933727,1714438232011,-500.0,0.00012694,2]
[324933728,1714438232020,-166.53906761,0.00012694,2]
[324933729,1714438232029,-500.0,0.00012694,2]
[324933730,1714438232038,-500.0,0.00012694,2]
[324933731,1714438232048,-849.31,0.00012694,2]
[324933732,1714438232057,-500.0,0.00012694,2]
[324933733,1714438232066,-500.0,0.00012694,2]
[324933734,1714438232275,-500.0,0.00012694,2]
[324933735,1714438232297,-500.0,0.00012694,2]
[324933736,1714438232307,-500.0,0.00012694,2]
[324933737,1714438232316,-500.0,0.00012694,2]
[324933738,1714438232325,-500.0,0.00012694,2]
[324933739,1714438232335,-500.0,0.00012694,2]
[324933740,1714438232346,-672.81,0.00012694,2]
[324933741,1714438232356,-500.0,0.00012694,2]
[324933742,1714438232365,-500.0,0.00012694,2]
[324933743,1714438232374,-767.95,0.00012694,2]
[324933744,1714438232383,-500.0,0.00012694,2]
[324933745,1714438232392,-500.0,0.00012694,2]
[324933746,1714438232402,-500.0,0.00012694,2]
[324933747,1714438232411,-1250.0,0.00012694,2]
[324933748,1714438232420,-500.0,0.00012694,2]
[324933749,1714438232430,-500.0,0.00012694,2]
[324933750,1714438232444,-500.0,0.00012694,2]
[324933751,1714438232453,-500.0,0.00012694,2]
[324933752,1714438232463,-523.06,0.00012694,2]
[324933753,1714438232473,-836.45,0.00012694,2]
[324933754,1714438232482,-500.0,0.00012694,2]
[324933755,1714438232491,-500.0,0.00012694,2]
[324933756,1714438232502,-591.29521219,0.00012694,2]
[324933757,1714438232511,-500.0,0.00012694,2]
[324933758,1714438232523,-500.0,0.00012694,2]
[324933759,1714438232532,-500.0,0.00012694,2]
[324933760,1714438232542,-500.0,0.00012694,2]
[324933761,1714438232552,-500.0,0.00012694,2]
[324933762,1714438232561,-528.95,0.00012694,2]
[324933763,1714438232570,-500.0,0.00012694,2]
[324933764,1714438232580,-500.0,0.00012694,2]
[324933765,1714438232591,-500.0,0.00012694,2]
[324933766,1714438232600,-500.0,0.00012694,2]
[324933767,1714438232609,-781.88,0.00012694,2]
[324933768,1714438232618,-645.56,0.00012694,2]
[324933769,1714438232627,-500.0,0.00012694,2]
[324933770,1714438232636,-500.0,0.00012694,2]
[324933771,1714438232646,-1016.14,0.00012694,2]
[324933772,1714438232654,-500.0,0.00012694,2]
[324933773,1714438232663,-500.0,0.00012694,2]
[324933774,1714438232672,-500.0,0.00012694,2]
[324933775,1714438232680,-500.0,0.00012694,2]
[324933776,1714438232690,-500.0,0.00012694,2]
[324933777,1714438232699,-500.0,0.00012694,2]
[324933778,1714438232707,-500.0,0.00012694,2]
[324933779,1714438232716,-1678.21,0.00012694,2]
[324933780,1714438232725,-962.8,0.00012694,2]
[324933781,1714438232734,-500.0,0.00012694,2]
[324933782,1714438232742,-500.0,0.00012694,2]
[324933783,1714438232751,-1802.8,0.00012694,2]
[324933784,1714438232760,-500.0,0.00012694,2]
[324933785,1714438232770,-561.84,0.00012694,2]
[324933786,1714438232779,-864.16,0.00012694,2]
[324933787,1714438232789,-81087.58419276,0.00012695,2]
[324933788,1714438232801,-626.71201654,0.00012695,2]
[324933789,1714438232812,-346.48303694,0.00012695,2]
[324933790,1714438232823,-1006.01442682,0.00012695,2]
[324933791,1714438232834,-320.76,0.00012695,2]
[324933792,1714438232850,-161612.44632694,0.00012695,2]
[324933793,1714438232860,-3575.3927,0.00012695,2]
[324933794,1714438232870,-379.74298486,0.00012696,2]
[324933795,1714438232879,-5590.8658122,0.00012749,2]
[324933796,1714438232888,-3272.737818,0.00012761,2]
[324933797,1714438232898,-385.301075,0.00012761,2]
[324933798,1714438232908,-386.81959962,0.00012763,2]
[324933799,1714438232917,-500.0,0.00012763,2]
[324933800,1714438232926,-168.52611107,0.00012777,2]
[324933801,1714438232935,-162.5179895,0.00012785,2]
[324933802,1714438232945,-914.97,0.00012794,2]
[324933803,1714438232955,-1250.0,0.00012794,2]
[324933804,1714438232964,-1250.0,0.00012794,2]
[324933805,1714438232973,-2356.43931281,0.00012795,2]
[324933806,1714438232983,-545.81452134,0.00012795,2]
[324933807,1714438232992,-23294.21434004,0.00012795,2]
[324933808,1714438233004,-896.99068152,0.00012795,2]
[324933809,1714438233016,-667.36237526,0.00012795,2]
[324933810,1714438233039,-7799.08772737,0.00012795,2]
[324933811,1714438233050,-344816.22853829,0.00012795,2]
[324933812,1714438233061,-27600.999998,0.00012795,2]
[324933813,1714438233072,-418.90217464,0.00012795,2]
[324933814,1714438233084,-6970.88873846,0.00012795,2]
[324933815,1714438233099,-1679.7841777,0.00012795,2]
[324933817,1714438237501,-633.57,0.00012595,2]
[324933818,1714438237513,-578.9776056,0.00012595,2]
[324933819,1714438237656,-32.4895944,0.00012595,2]
[324933820,1714438237666,-500.0,0.00012694,2]
[324933821,1714438237675,-876.85,0.00012694,2]
[324933822,1714438237685,-500.0,0.00012694,2]
[324933823,1714438237695,-30001.3338331,0.00012795,2]
[324933824,1714438237743,-256.838455,0.00012795,2]
[324933825,1714438237754,-6628.30439943,0.00012795,2]
[324933826,1714438237766,-835.11710452,0.00012795,2]
[324933827,1714438237778,-27561.82820925,0.00012795,2]
[324934312,1714438242510,-555.0,0.00012795,2]
[324934315,1714438242524,-325.82111872,0.00012795,2]
[324934317,1714438242537,-45829.14389438,0.00012795,2]
[324934319,1714438242547,-2000.0,0.00012796,2]
[324934321,1714438242557,-200.0,0.00012796,2]
[324934323,1714438242567,-3000.0,0.00012796,2]
[324934325,1714438242576,-1250.0,0.00012799,2]
[324934327,1714438242586,-3999.40091038,0.000128,2]
[324934329,1714438242596,-11178.29515875,0.000128,2]
[324934332,1714438242614,-951.82436683,0.000128,2]
[324934334,1714438242626,-519.32679079,0.000128,2]
[324934336,1714438242638,-2899.32881208,0.000128,2]
[324934338,1714438242651,-2530.52019922,0.000128,2]
[324934341,1714438242662,-394.78326386,0.000128,2]
[324934344,1714438242683,-3523.4328,0.000128,2]
[324934346,1714438242694,-38059.78969696,0.000128,2]
[324934350,1714438242720,-1220.00000001,0.000128,2]
[324934371,1714438242924,-1025.18051412,0.000128,2]
[324934374,1714438242935,-1031.53958,0.000128,2]
[324934376,1714438242947,-400.75631753,0.000128,2]
[324934378,1714438242958,-967.695528,0.000128,2]
[324934645,1714438245471,-500.0,0.00012694,2]
[324934648,1714438245483,-500.0,0.00012694,2]
[324934650,1714438245492,-500.0,0.00012694,2]
[324934652,1714438245502,-160.14402409,0.00012794,2]
[324934654,1714438245511,-189.86508504,0.00012794,2]
[324934656,1714438245521,-256.0945738,0.00012794,2]
[324934658,1714438245531,-545.81452134,0.00012794,2]
[324934660,1714438245542,-35297.52697185,0.000128,2]
[324934662,1714438245552,-207.63,0.00012809,2]
[324934664,1714438245561,-815.0,0.00012849,2]
[324934666,1714438245570,-1000.0,0.00012895,2]
[324934668,1714438245580,-500.0,0.00012895,2]
[324934685,1714438245589,-1000.0,0.00012896,2]
[324934686,1714438245815,-1000.0,0.00012896,2]
[324934687,1714438245826,-1000.0,0.00012896,2]
[324934688,1714438245836,-500.0,0.00012896,2]
[324934689,1714438245846,-500.0,0.00012896,2]
[324934691,1714438245861,-1000.0,0.000129,2]
[324934693,1714438245872,-16032.0,0.000129,2]
[324934695,1714438245882,-510.52293296,0.000129,2]
[324934697,1714438245892,-1000.0,0.0001291,2]
[324934699,1714438245900,-161.590448,0.00012915,2]
[324934701,1714438245909,-167.049217,0.00012915,2]
[324934703,1714438245919,-3272.737818,0.00012915,2]
[324934705,1714438245928,-385.301075,0.00012915,2]
[324934707,1714438245937,-1000.0,0.0001292,2]
[324934709,1714438245946,-200.0,0.00012924,2]
[324934711,1714438245956,-1000.0,0.0001293,2]
[324934713,1714438245965,-1000.0,0.0001294,2]
[324934715,1714438245975,-1000.0,0.0001295,2]
[324934717,1714438245985,-1000.0,0.0001296,2]
[324934719,1714438245994,-530.27,0.00012968,2]
[324934721,1714438246003,-500.0,0.00012968,2]
[324934723,1714438246013,-500.0,0.00012968,2]
[324934725,1714438246023,-500.0,0.00012968,2]
[324934729,1714438246032,-849.31,0.00012968,2]
[324934730,1714438246041,-500.0,0.00012968,2]
[324934733,1714438246051,-500.0,0.00012968,2]
[324934737,1714438246060,-456.27,0.00012968,2]
[324934739,1714438246070,-500.0,0.00012968,2]
[324934741,1714438246079,-500.0,0.00012968,2]
[324934744,1714438246088,-500.0,0.00012968,2]
[324934747,1714438246097,-672.81,0.00012968,2]
[324934749,1714438246110,-500.0,0.00012968,2]
[324934752,1714438246119,-500.0,0.00012968,2]
[324934755,1714438246127,-767.95,0.00012968,2]
[324934757,1714438246135,-500.0,0.00012968,2]
[324934760,1714438246143,-500.0,0.00012968,2]
[324934763,1714438246152,-500.0,0.00012968,2]
[324934765,1714438246161,-500.0,0.00012968,2]
[324934767,1714438246171,-500.0,0.00012968,2]
[324934769,1714438246181,-500.0,0.00012968,2]
[324934771,1714438246193,-523.06,0.00012968,2]
[324934773,1714438246203,-836.45,0.00012968,2]
[324934775,1714438246214,-500.0,0.00012968,2]
[324934777,1714438246224,-500.0,0.00012968,2]
[324934779,1714438246234,-500.0,0.00012968,2]
[324934781,1714438246244,-500.0,0.00012968,2]
[324934783,1714438246254,-500.0,0.00012968,2]